bitfinex-derivatives/quotes_BTCF0:USTF0_20241103
["timestamp","ask_amount","ask_price","bid_price","bid_amount"]
[1730604235554,0.3608,68336.0,68328.0,0.3608]
[1730604235740,0.3608,68336.0,68335.0,0.073194]
[1730604236264,0.3608,68336.0,68334.0,0.04352906]
[1730604236456,0.3608,68336.0,68331.0,0.073198]
[1730604236457,0.073194,68335.0,68333.0,0.04352906]
[1730604237449,0.073194,68335.0,68332.0,0.04352906]
[1730604237750,0.079194,68335.0,68333.0,0.04352906]
[1730604238144,0.079194,68335.0,68333.0,0.04652906]
[1730604238145,0.074194,68335.0,68333.0,0.04652906]
[1730604238448,0.074194,68335.0,68333.0,0.003]
[1730604238649,0.075194,68335.0,68333.0,0.003]
[1730604239044,0.06411322,68334.0,68333.0,0.003]
[1730604239254,0.10146688,68334.0,68333.0,0.003]
[1730604239951,0.10146688,68334.0,68332.0,0.003]
[1730604240148,0.02827187,68333.0,68332.0,0.003]
[1730604240345,0.02827187,68333.0,68332.0,0.073197]
[1730604241249,0.02827187,68333.0,68332.0,0.077197]
[1730604241650,0.02827187,68333.0,68332.0,0.073197]
[1730604241858,0.02927187,68333.0,68332.0,0.077197]
[1730604243058,0.02927187,68333.0,68332.0,0.203277]
[1730604243247,0.03026996,68333.0,68332.0,0.42188687]
[1730604243455,0.002,68333.0,68332.0,0.42188687]
[1730604245749,0.002,68333.0,68332.0,0.86092687]
[1730604248466,0.002,68333.0,68332.0,1.22172687]
[1730604251563,0.002,68333.0,68332.0,0.78268687]
[1730604251862,0.002,68333.0,68332.0,1.09564687]
[1730604252064,0.002,68333.0,68332.0,1.22172687]
[1730604254854,0.002,68333.0,68332.0,1.22072687]
[1730604254855,0.001,68333.0,68332.0,1.22072687]
[1730604255060,0.0557,68348.0,68347.0,0.073181]
[1730604255368,0.3608,68351.0,68349.0,0.073179]
[1730604255369,0.06409546,68350.0,68349.0,0.073179]
[1730604256764,0.02826405,68350.0,68349.0,0.65398395]
[1730604256964,0.02826405,68350.0,68349.0,1.09290395]
[1730604257158,0.02826405,68350.0,68349.0,0.65398395]
[1730604257363,0.02826405,68350.0,68349.0,1.09290395]
[1730604257572,0.03526405,68350.0,68349.0,1.09390395]
[1730604258168,0.04626405,68350.0,68349.0,1.09490395]
[1730604258369,0.01100001,68350.0,68349.0,1.09490395]
[1730604261074,0.01100001,68350.0,68349.0,1.26446025]
[1730604262367,0.01100001,68350.0,68349.0,0.82554025]
[1730604263970,0.01100001,68350.0,68349.0,0.46474025]
[1730604264165,0.01100001,68350.0,68349.0,0.69950025]
[1730604264369,0.01100001,68350.0,68349.0,0.82506025]
[1730604264764,0.01100001,68350.0,68349.0,0.69950025]
[1730604264966,0.01100001,68350.0,68349.0,0.6050553]
[1730604265663,0.01100001,68350.0,68349.0,0.4063163]
[1730604265864,0.073183,68346.0,68343.0,0.3608]
[1730604266063,0.0543,68345.0,68343.0,0.3608]
[1730604266575,0.073184,68344.0,68343.0,0.3608]
[1730604267672,0.0543,68345.0,68343.0,0.3648]
[1730604268270,0.127484,68345.0,68343.0,0.3788]
[1730604268470,0.001,68344.0,68343.0,0.3788]
[1730604269276,0.129484,68345.0,68343.0,0.3778]
[1730604270184,0.0563,68345.0,68344.0,0.073184]
[1730604270378,0.002,68345.0,68344.0,0.073184]
[1730604270874,0.0542,68349.0,68343.0,0.3638]
[1730604271072,0.0542,68349.0,68348.0,0.17161995]
[1730604271468,0.0578,68354.0,68348.0,0.09843995]
[1730604271681,0.0578,68354.0,68353.0,0.09843995]
[1730604272573,0.0718,68354.0,68353.0,0.09843995]
[1730604272768,0.0718,68354.0,68353.0,0.17161495]
[1730604273072,0.0768,68354.0,68353.0,0.17261495]
[1730604273978,0.0628,68354.0,68353.0,0.17261495]
[1730604274173,0.0768,68354.0,68353.0,0.17261495]
[1730604274775,0.0628,68354.0,68353.0,0.17261495]
[1730604274976,0.0588,68354.0,68353.0,0.11543995]
[1730604275375,0.0588,68354.0,68353.0,0.017]
[1730604276378,0.0588,68354.0,68353.0,0.11543995]
[1730604276979,0.131974,68354.0,68353.0,0.11543995]
[1730604277286,0.24097677,68354.0,68353.0,0.11543995]
[1730604277878,0.19606656,68354.0,68353.0,0.11543995]
[1730604278281,0.19606656,68354.0,68353.0,0.017]
[1730604278976,0.24097751,68354.0,68353.0,0.017]
[1730604280791,0.24097751,68354.0,68353.0,0.06071049]
[1730604282088,0.22028063,68354.0,68353.0,0.11518849]
[1730604282393,0.16248063,68354.0,68353.0,0.17161495]
[1730604282583,0.11000351,68354.0,68353.0,0.17161495]
[1730604282895,0.11000302,68354.0,68353.0,0.17161495]
[1730604283078,0.22574307,68354.0,68353.0,0.17161495]
[1730604283275,0.27065338,68354.0,68353.0,0.17161495]
[1730604283577,0.3231598,68354.0,68353.0,0.17161495]
[1730604283775,0.27068268,68354.0,68353.0,0.17161495]
[1730604284193,0.061869,68359.0,68353.0,0.17161495]
[1730604284486,0.0562,68360.0,68353.0,0.09843995]
[1730604284685,0.0562,68360.0,68359.0,0.09843995]
[1730604285690,0.0572,68360.0,68359.0,0.09843995]
[1730604286390,0.0652,68360.0,68359.0,0.09843995]
[1730604287475,0.0792,68360.0,68359.0,0.09843995]
[1730604288580,0.023,68360.0,68359.0,0.09843995]
[1730604289888,0.023,68360.0,68359.0,0.14295723]
[1730604292188,0.25763721,68360.0,68359.0,0.04451728]
[1730604292389,0.25763721,68360.0,68356.0,0.073172]
[1730604292695,0.16147021,68359.0,68356.0,0.073172]
[1730604292993,0.096167,68360.0,68357.0,0.07317]
[1730604292994,0.16147021,68358.0,68357.0,0.07317]
[1730604293181,0.10899617,68358.0,68357.0,0.07317]
[1730604294589,0.12299617,68358.0,68357.0,0.07317]
[1730604295288,0.13099617,68358.0,68357.0,0.07417]
[1730604295788,0.13099617,68358.0,68357.0,0.001]
[1730604296699,0.13099635,68358.0,68357.0,0.001]
[1730604298190,0.20416535,68358.0,68357.0,0.001]
[1730604298488,0.25736535,68358.0,68357.0,0.001]
[1730604299195,0.148369,68358.0,68357.0,0.001]
[1730604299695,0.17663082,68358.0,68357.0,0.001]
[1730604299897,0.17663049,68358.0,68357.0,0.001]
[1730604300394,0.61551049,68358.0,68355.0,0.04397481]
[1730604300592,0.073182,68346.0,68344.0,0.073184]
[1730604300782,0.073181,68348.0,68347.0,0.073181]
[1730604301895,0.073181,68348.0,68347.0,0.082181]
[1730604302198,0.074181,68348.0,68347.0,0.082181]
[1730604302686,0.074181,68348.0,68347.0,0.009]
[1730604303891,0.075181,68348.0,68347.0,0.011]
[1730604307694,0.075181,68348.0,68347.0,0.07558008]
[1730604309610,0.13976108,68348.0,68347.0,0.011]
[1730604310105,0.075181,68348.0,68347.0,0.07558008]
[1730604311604,0.002,68348.0,68347.0,0.14876108]
[1730604311795,0.002,68348.0,68347.0,0.50956108]
[1730604312101,0.07518,68348.0,68347.0,0.011]
[1730604313312,0.43892,68347.0,68333.0,0.198275]
[1730604313600,0.073197,68332.0,68331.0,0.06458008]
[1730604314391,0.14639172,68332.0,68331.0,0.06458008]
[1730604314596,0.18223216,68332.0,68331.0,0.06458008]
[1730604315309,0.18323216,68332.0,68331.0,0.14577808]
[1730604315698,0.18323216,68332.0,68331.0,0.081198]
[1730604316103,0.18423216,68332.0,68331.0,0.081198]
[1730604316301,0.18423216,68332.0,68331.0,0.008]
[1730604316509,0.18423239,68332.0,68331.0,0.008]
[1730604319804,0.11103539,68332.0,68331.0,0.008]
[1730604320014,0.11103539,68332.0,68331.0,0.17714618]
[1730604320703,0.06611174,68332.0,68331.0,0.17714618]
[1730604320903,0.06611174,68332.0,68331.0,0.07871589]
[1730604321510,0.073188,68341.0,68333.0,0.073196]
[1730604321810,0.073188,68341.0,68339.0,0.04349014]
[1730604322303,0.073189,68340.0,68337.0,0.16558685]
[1730604322511,0.073189,68340.0,68337.0,0.1076]
[1730604322801,0.002,68341.0,68338.0,0.05798685]
[1730604323199,0.075189,68341.0,68338.0,0.05798685]
[1730604323401,0.074189,68341.0,68338.0,0.05798685]
[1730604323701,0.002,68340.0,68338.0,0.05798685]
[1730604325002,0.001,68340.0,68338.0,0.05798685]
[1730604325209,0.075189,68341.0,68338.0,0.05998685]
[1730604325413,0.002,68341.0,68338.0,0.05998685]
[1730604325599,0.002,68341.0,68339.0,0.05798685]
[1730604325803,0.001,68340.0,68339.0,0.05798685]
[1730604326105,0.002,68340.0,68339.0,0.05798685]
[1730604326315,0.002,68340.0,68338.0,0.075191]
[1730604326515,0.001,68340.0,68339.0,0.07319]
[1730604326716,0.001,68341.0,68339.0,0.07319]
[1730604326717,0.002,68341.0,68339.0,0.07519]
[1730604327019,0.001,68341.0,68340.0,0.09843029]
[1730604328304,0.073185,68344.0,68340.0,0.09843029]
[1730604328812,0.001,68341.0,68340.0,0.17103045]
[1730604329018,0.001,68341.0,68340.0,0.09843029]
[1730604329219,0.002,68341.0,68340.0,0.17203045]
[1730604329417,0.02926684,68341.0,68340.0,0.09943029]
[1730604329607,0.06510178,68341.0,68340.0,0.09943029]
[1730604330219,0.06610178,68341.0,68340.0,0.09943029]
[1730604331105,0.13928978,68341.0,68340.0,0.001]
[1730604332410,0.06610178,68341.0,68340.0,0.001]
[1730604333703,0.06610178,68341.0,68340.0,0.17261929]
[1730604336512,0.06610178,68341.0,68340.0,0.21612079]
[1730604336513,0.002,68341.0,68340.0,0.21612079]
[1730604338314,0.002,68341.0,68340.0,0.17261929]
[1730604342423,0.002,68341.0,68340.0,0.074189]
[1730604343820,0.002,68341.0,68340.0,0.001]
[1730604344120,0.075188,68341.0,68340.0,0.001]
[1730604344524,0.13929214,68341.0,68340.0,0.001]
[1730604344825,0.18421046,68341.0,68340.0,0.001]
[1730604345526,0.11102246,68341.0,68340.0,0.074189]
[1730604346721,0.18421046,68341.0,68340.0,0.001]
[1730604347623,0.33046612,68341.0,68340.0,0.001]
[1730604347825,0.18421046,68341.0,68340.0,0.001]
[1730604348019,0.13929214,68341.0,68340.0,0.001]
[1730604348228,0.18421046,68341.0,68340.0,0.001]
[1730604348523,0.18421259,68341.0,68340.0,0.001]
[1730604349331,0.18421323,68341.0,68340.0,0.074189]
[1730604349628,0.33047338,68341.0,68340.0,0.074189]
[1730604349820,0.33047338,68341.0,68340.0,0.001]
[1730604350022,0.62317323,68341.0,68329.0,0.434]
[1730604350224,0.073199,68330.0,68329.0,0.3608]
[1730604350428,0.13730477,68330.0,68329.0,0.3608]
[1730604351025,0.13730477,68330.0,68329.0,0.3618]
[1730604351622,0.073199,68330.0,68329.0,0.3618]
[1730604352627,0.073199,68330.0,68329.0,0.40539637]
[1730604353025,0.073199,68330.0,68329.0,0.04459637]
[1730604353420,0.075199,68330.0,68329.0,0.04359637]
[1730604354536,0.0732,68329.0,68328.0,0.04359637]
[1730604355634,0.0732,68329.0,68328.0,0.11679837]
[1730604355935,0.0742,68329.0,68328.0,0.11679837]
[1730604356928,0.0742,68329.0,68327.0,0.04457691]
[1730604356929,0.073202,68328.0,68327.0,0.08813729]
[1730604357118,0.073202,68328.0,68327.0,0.04457691]
[1730604357325,0.073204,68326.0,68325.0,0.04356038]
[1730604357726,0.073205,68325.0,68324.0,0.3608]
[1730604358436,0.073205,68325.0,68324.0,0.40465856]
[1730604358930,0.074205,68325.0,68324.0,0.40465856]
[1730604359726,0.075205,68325.0,68324.0,0.40465856]
[1730604360839,0.073208,68322.0,68318.0,0.14581216]
[1730604361022,0.09843029,68323.0,68322.0,0.05808072]
[1730604361227,0.53243729,68323.0,68322.0,0.04356664]
[1730604361535,0.53243729,68323.0,68314.0,0.11605986]
[1730604361536,0.073215,68315.0,68314.0,0.05808409]
[1730604361726,0.073219,68312.0,68311.0,0.06027992]
[1730604361921,0.073219,68312.0,68311.0,0.00219583]
[1730604362728,0.17164929,68312.0,68311.0,0.00219583]
[1730604363632,0.17264929,68312.0,68311.0,0.00219583]
[1730604364326,0.17264929,68312.0,68305.0,0.00012527]
[1730604364327,0.17364929,68312.0,68305.0,0.00012527]
[1730604364629,0.073225,68306.0,68305.0,0.00012527]
[1730604365030,0.17165529,68306.0,68305.0,0.00012527]
[1730604366026,0.17265529,68306.0,68305.0,0.00012527]
[1730604366630,0.17365529,68306.0,68305.0,0.00012527]
[1730604368547,0.075225,68306.0,68305.0,0.00012527]
[1730604369035,0.17365529,68306.0,68305.0,0.00012527]
[1730604372043,0.075225,68306.0,68305.0,0.00012527]
[1730604374242,0.002,68306.0,68305.0,0.00012527]
[1730604374433,0.002,68306.0,68305.0,0.07335127]
[1730604374638,0.075225,68306.0,68305.0,0.00012527]
[1730604374850,0.03859419,68306.0,68305.0,0.00012527]
[1730604376941,0.434021,68311.0,68305.0,0.00012527]
[1730604377137,0.073221,68310.0,68306.0,0.073225]
[1730604377336,0.073222,68309.0,68306.0,0.073225]
[1730604378148,0.3608,68313.0,68305.0,0.00012527]
[1730604378351,0.001,68310.0,68305.0,0.00212527]
[1730604378555,0.073223,68309.0,68305.0,0.00212527]
[1730604378854,0.001,68310.0,68306.0,0.073224]
[1730604379063,0.001,68309.0,68305.0,0.00012527]
[1730604379360,0.002,68309.0,68307.0,0.073224]
[1730604379547,0.001,68309.0,68308.0,0.0488]
[1730604379848,0.074222,68309.0,68308.0,0.0488]
[1730604380951,0.074222,68309.0,68306.0,0.002]
[1730604380952,0.073224,68307.0,68306.0,0.002]
[1730604381344,0.09943029,68309.0,68305.0,0.00012527]
[1730604381657,0.073225,68306.0,68305.0,0.00012527]
[1730604382963,0.074225,68306.0,68305.0,0.00012527]
[1730604383261,0.075225,68306.0,68305.0,0.00112527]
[1730604389747,0.10350876,68306.0,68305.0,0.00112527]
[1730604391962,0.10350877,68306.0,68305.0,0.00112527]
[1730604393659,0.16813075,68306.0,68305.0,0.00112527]
[1730604396564,0.16813079,68306.0,68305.0,0.00112527]
[1730604396769,0.13984698,68306.0,68305.0,0.00112527]
[1730604398763,0.13984698,68306.0,68305.0,0.001]
[1730604399076,0.13984698,68306.0,68305.0,0.0591481]
[1730604399371,0.13984698,68306.0,68305.0,0.001]
[1730604404771,0.20399122,68306.0,68305.0,0.001]
[1730604410171,0.13984698,68306.0,68305.0,0.001]
[1730604411080,0.17570566,68306.0,68305.0,0.001]
[1730604411280,0.20399122,68306.0,68305.0,0.001]
[1730604413383,0.13984698,68306.0,68305.0,0.001]
[1730604414888,0.075225,68306.0,68305.0,0.001]
[1730604415081,0.075225,68306.0,68305.0,0.074226]
[1730604415684,0.14626015,68316.0,68305.0,0.57804798]
[1730604415992,0.14626015,68316.0,68315.0,0.13783698]
[1730604416191,0.0021962,68320.0,68315.0,0.16935743]
[1730604416381,0.0021962,68320.0,68319.0,0.13783298]
[1730604417677,0.3608,68327.0,68325.0,0.073204]
[1730604418581,0.3608,68327.0,68323.0,0.06462198]
[1730604418783,0.06462198,68329.0,68326.0,0.073204]
[1730604418982,0.06462198,68329.0,68327.0,0.120502]
[1730604419691,0.073201,68329.0,68327.0,0.120502]
[1730604420096,0.073202,68328.0,68327.0,0.120502]
[1730604420883,0.073202,68328.0,68327.0,0.0473]
[1730604421791,0.10147662,68328.0,68327.0,0.0473]
[1730604421990,0.10947662,68328.0,68327.0,0.0473]
[1730604422189,0.10947662,68328.0,68317.0,0.073213]
[1730604422190,0.03627462,68328.0,68317.0,0.073213]
[1730604422388,0.07321,68321.0,68318.0,0.04455526]
[1730604422697,0.07321,68321.0,68318.0,0.073212]
[1730604423084,0.17164806,68319.0,68318.0,0.073212]
[1730604423486,0.17164806,68319.0,68318.0,0.075212]
[1730604423992,0.073211,68319.0,68318.0,0.075212]
[1730604424188,0.073211,68319.0,68318.0,0.073212]
[1730604424394,0.074211,68319.0,68318.0,0.075212]
[1730604425091,0.075211,68319.0,68318.0,0.075212]
[1730604425995,0.002,68319.0,68318.0,0.075212]
[1730604426398,0.002,68319.0,68318.0,0.57974906]
[1730604429894,0.3608,68339.0,68334.0,0.073195]
[1730604430089,0.06411412,68338.0,68335.0,0.0474]
[1730604430403,0.3608,68346.0,68336.0,0.09843706]
[1730604430404,0.073184,68344.0,68336.0,0.09843706]
[1730604430608,0.3608,68346.0,68341.0,0.073188]
[1730604430609,0.0282682,68342.0,68341.0,0.073188]
[1730604431605,0.3608,68352.0,68342.0,0.073187]
[1730604432193,0.3608,68352.0,68342.0,0.29203662]
[1730604432394,0.3608,68352.0,68351.0,0.073177]
[1730604432699,0.433967,68360.0,68348.0,0.09843706]
[1730604432901,0.02826344,68359.0,68358.0,0.073169]
[1730604433804,0.02826344,68359.0,68358.0,0.11797005]
[1730604434497,0.008,68359.0,68358.0,0.11797005]
[1730604435788,0.02,68359.0,68358.0,0.11897005]
[1730604439900,0.02,68359.0,68358.0,0.21740711]
[1730604440307,0.02,68359.0,68358.0,0.11897005]
[1730604440702,0.19160506,68359.0,68358.0,0.001]
[1730604442199,0.093168,68359.0,68358.0,0.001]
[1730604443408,0.093168,68359.0,68354.0,0.04326437]
[1730604443409,0.008,68359.0,68354.0,0.04326437]
[1730604443605,0.012,68359.0,68353.0,0.073175]
[1730604443908,0.02826144,68358.0,68352.0,0.3608]
[1730604444102,0.0876,68357.0,68352.0,0.3608]
[1730604444302,0.073175,68353.0,68352.0,0.3608]
[1730604445414,0.0876,68357.0,68351.0,0.04344445]
[1730604445603,0.073176,68352.0,68350.0,0.073178]
[1730604445810,0.073176,68352.0,68350.0,0.1177272]
[1730604446316,0.02826389,68351.0,68350.0,0.1177272]
[1730604446905,0.073176,68352.0,68350.0,0.1177272]
[1730604447315,0.074176,68352.0,68350.0,0.1197272]
[1730604447915,0.073176,68352.0,68351.0,0.073177]
[1730604448416,0.10143989,68352.0,68351.0,0.073177]
[1730604448614,0.074176,68352.0,68351.0,0.073177]
[1730604449019,0.075176,68352.0,68351.0,0.073177]
[1730604449517,0.075176,68352.0,68350.0,0.0605492]
[1730604449721,0.085176,68352.0,68351.0,0.001]
[1730604449917,0.11243983,68352.0,68351.0,0.001]
[1730604450110,0.12143983,68352.0,68351.0,0.001]
[1730604451109,0.11243983,68352.0,68351.0,0.001]
[1730604451317,0.11343983,68352.0,68351.0,0.001]
[1730604451712,0.073177,68351.0,68350.0,0.0605492]
[1730604452512,0.073177,68351.0,68350.0,0.0465492]
[1730604452716,0.073177,68351.0,68350.0,0.0445492]
[1730604453028,0.073177,68351.0,68344.0,0.12276]
[1730604453518,0.084177,68351.0,68350.0,0.074178]
[1730604453724,0.093177,68351.0,68350.0,0.074178]
[1730604454116,0.084177,68351.0,68350.0,0.074178]
[1730604454319,0.085177,68351.0,68350.0,0.074178]
[1730604454818,0.093177,68351.0,68350.0,0.074178]
[1730604455527,0.083177,68351.0,68350.0,0.073178]
[1730604455928,0.083177,68351.0,68346.0,0.49383824]
[1730604455929,0.07318,68348.0,68346.0,0.49383824]
[1730604456123,0.073181,68347.0,68346.0,0.49283824]
[1730604456318,0.073181,68347.0,68346.0,0.47883824]
[1730604457329,0.011,68351.0,68344.0,0.05767523]
[1730604457519,0.001,68347.0,68342.0,0.13086123]
[1730604457821,0.0439,68350.0,68342.0,0.073186]
[1730604457822,0.073185,68344.0,68342.0,0.073186]
[1730604458223,0.073185,68344.0,68343.0,0.05767523]
[1730604458616,0.073185,68344.0,68343.0,0.13086023]
[1730604458817,0.073185,68344.0,68343.0,0.073185]
[1730604459118,0.074185,68344.0,68343.0,0.073185]
[1730604459737,0.001,68347.0,68342.0,0.04704761]
[1730604459917,0.074184,68344.0,68343.0,0.014]
[1730604460114,0.075184,68344.0,68343.0,0.017]
[1730604460927,0.17362106,68344.0,68343.0,0.017]
[1730604461117,0.10345085,68344.0,68343.0,0.017]
[1730604461321,0.10245085,68344.0,68343.0,0.003]
[1730604462325,0.10345085,68344.0,68343.0,0.017]
[1730604465127,0.10345085,68344.0,68343.0,0.090185]
[1730604465323,0.075184,68344.0,68343.0,0.090185]
[1730604467329,0.075184,68344.0,68343.0,0.1479304]
[1730604467531,0.075184,68344.0,68343.0,0.0747454]
[1730604468322,0.116384,68344.0,68343.0,0.0747454]
[1730604470024,0.116384,68344.0,68343.0,0.017]
[1730604470334,0.116384,68344.0,68343.0,0.0747454]
[1730604470534,0.116384,68344.0,68343.0,0.017]
[1730604474137,0.116384,68344.0,68343.0,0.0747454]
[1730604478545,0.116384,68344.0,68343.0,0.1479304]
[1730604478546,0.075184,68344.0,68343.0,0.1479304]
[1730604478942,0.075184,68344.0,68343.0,0.1917304]
[1730604480137,0.002,68344.0,68343.0,0.133985]
[1730604484646,0.002,68344.0,68343.0,0.0608]
[1730604484847,0.435984,68344.0,68343.0,0.017]
[1730604486949,0.47884972,68344.0,68343.0,0.017]
[1730604488744,0.50712088,68344.0,68343.0,0.017]
[1730604489755,0.47884972,68344.0,68343.0,0.017]
[1730604496963,0.11804972,68344.0,68343.0,0.017]
[1730604497267,0.47884972,68344.0,68343.0,0.017]
[1730604500675,0.435984,68344.0,68343.0,0.017]
[1730604504174,0.435984,68344.0,68343.0,0.090185]
[1730604504574,0.435984,68344.0,68343.0,0.14805948]
[1730604504975,0.082184,68344.0,68343.0,0.14505948]
[1730604505282,0.082184,68344.0,68343.0,0.14512155]
[1730604505475,0.074184,68344.0,68343.0,0.087185]
[1730604505681,0.086184,68344.0,68343.0,0.077185]
[1730604506183,0.093184,68344.0,68343.0,0.074185]
[1730604506479,0.441984,68344.0,68343.0,0.073185]
[1730604506682,0.454984,68344.0,68343.0,0.074185]
[1730604507785,0.454984,68344.0,68343.0,0.13212155]
[1730604507983,0.454984,68344.0,68343.0,0.074185]
[1730604508582,0.453984,68344.0,68343.0,0.074185]
[1730604508790,0.445984,68344.0,68343.0,0.074185]
[1730604509093,0.453984,68344.0,68343.0,0.074185]
[1730604509276,0.441984,68344.0,68343.0,0.073185]
[1730604509475,0.445984,68344.0,68343.0,0.074185]
[1730604509678,0.453984,68344.0,68343.0,0.074185]
[1730604510079,0.445984,68344.0,68343.0,0.074185]
[1730604510288,0.453984,68344.0,68343.0,0.074185]
[1730604511778,0.453984,68344.0,68343.0,0.05894789]
[1730604511980,0.453984,68344.0,68343.0,0.001]
[1730604512190,0.07319,68339.0,68338.0,0.05794789]
[1730604512382,0.073191,68338.0,68337.0,0.04583651]
[1730604512574,0.433991,68338.0,68337.0,0.00219482]
[1730604512782,0.46226267,68338.0,68337.0,0.00219482]
[1730604512977,0.073202,68328.0,68327.0,0.0408]
[1730604513179,0.10147367,68328.0,68327.0,0.0408]
[1730604513383,0.10147496,68328.0,68327.0,0.0408]
[1730604514281,0.073202,68328.0,68327.0,0.08387052]
[1730604514486,0.073202,68328.0,68327.0,0.0408]
[1730604514689,0.07321,68320.0,68319.0,0.3608]
[1730604515286,0.02827643,68320.0,68315.0,0.0397]
[1730604515482,0.3608,68324.0,68315.0,0.0397]
[1730604515483,0.073214,68316.0,68315.0,0.08299899]
[1730604515796,0.073214,68316.0,68315.0,0.0397]
[1730604516390,0.073214,68316.0,68315.0,0.0567]
[1730604516785,0.073214,68316.0,68315.0,0.129915]
[1730604517195,0.074214,68316.0,68315.0,0.17440267]
[1730604517797,0.074214,68316.0,68315.0,0.0567]
[1730604518202,0.074214,68316.0,68315.0,0.017]
[1730604518700,0.075214,68316.0,68315.0,0.017]
[1730604521407,0.436014,68316.0,68315.0,0.017]
[1730604525102,0.075214,68316.0,68315.0,0.017]
[1730604525302,0.075214,68316.0,68315.0,0.090215]
[1730604526614,0.075214,68316.0,68315.0,0.017]
[1730604533015,0.436014,68316.0,68315.0,0.017]
[1730604533607,0.436014,68316.0,68315.0,0.090215]
[1730604537021,0.002,68316.0,68315.0,0.090215]
[1730604537203,0.3608,68328.0,68315.0,0.529335]
[1730604537410,0.073207,68323.0,68322.0,0.073207]
[1730604537912,0.3608,68328.0,68320.0,0.0396]
[1730604538112,0.073204,68326.0,68325.0,0.073204]
[1730604538317,0.073204,68326.0,68320.0,0.0396]
[1730604538318,0.3608,68328.0,68327.0,0.073203]
[1730604538616,0.002,68328.0,68327.0,0.47751169]
[1730604539021,0.009,68328.0,68327.0,0.434003]
[1730604539210,0.009,68328.0,68327.0,0.873083]
[1730604539613,0.001,68328.0,68327.0,0.91645202]
[1730604539921,0.009,68328.0,68327.0,0.91645202]
[1730604540128,0.008,68328.0,68327.0,0.873083]
[1730604541107,0.018,68328.0,68327.0,0.874083]
[1730604541314,0.018,68328.0,68327.0,0.93203089]
[1730604541512,0.018,68328.0,68327.0,0.874083]
[1730604542226,0.018,68328.0,68327.0,0.93203089]
[1730604542531,0.018,68328.0,68327.0,0.874083]
[1730604542913,0.018,68328.0,68327.0,1.09279603]
[1730604543118,0.073183,68345.0,68342.0,0.073187]
[1730604543522,0.0397,68350.0,68340.0,0.09842153]
[1730604543523,0.07318,68349.0,68344.0,0.073184]
[1730604543714,0.073181,68348.0,68344.0,0.073184]
[1730604543915,0.073181,68348.0,68345.0,0.073183]
[1730604544209,0.073181,68348.0,68341.0,0.041]
[1730604544210,0.073185,68344.0,68342.0,0.001]
[1730604544918,0.073185,68344.0,68341.0,0.114187]
[1730604545518,0.081185,68344.0,68341.0,0.114187]
[1730604546115,0.008,68344.0,68343.0,0.073185]
[1730604547122,0.007,68344.0,68343.0,0.073185]
[1730604547625,0.080184,68344.0,68343.0,0.001]
[1730604547827,0.080184,68344.0,68343.0,0.002]
[1730604548025,0.080184,68344.0,68329.0,0.12136]
[1730604548325,0.073202,68328.0,68326.0,0.12136]
[1730604548626,0.09842153,68333.0,68326.0,0.12136]
[1730604548821,0.0426,68332.0,68326.0,0.12136]
[1730604549023,0.073202,68328.0,68326.0,0.12136]
[1730604549327,0.073202,68328.0,68326.0,0.194563]
[1730604549624,0.073202,68328.0,68326.0,0.073203]
[1730604549827,0.0426,68332.0,68328.0,0.073201]
[1730604550021,0.073198,68331.0,68328.0,0.073201]
[1730604550527,0.011,68328.0,68327.0,0.073203]
[1730604550711,0.011,68328.0,68327.0,0.17162453]
[1730604551120,0.003,68328.0,68327.0,0.073203]
[1730604551724,0.003,68328.0,68327.0,0.17162453]
[1730604551925,0.011,68328.0,68327.0,0.17262453]
[1730604552322,0.008,68328.0,68327.0,0.17262453]
[1730604553216,0.011,68328.0,68327.0,0.17362453]
[1730604553917,0.011,68328.0,68327.0,0.075203]
[1730604558114,0.011,68328.0,68327.0,0.11868615]
[1730604560320,0.011,68328.0,68327.0,0.075203]
[1730604560516,0.084202,68328.0,68327.0,0.002]
[1730604560920,0.084202,68328.0,68327.0,0.04552174]
[1730604561317,0.084202,68328.0,68327.0,0.002]
[1730604562330,0.084202,68328.0,68327.0,0.04553529]
[1730604563630,0.084202,68328.0,68327.0,0.002]
[1730604563823,0.084202,68328.0,68327.0,0.04556937]
[1730604564135,0.445002,68328.0,68327.0,0.002]
[1730604564327,0.445002,68328.0,68327.0,0.04556937]
[1730604564524,0.529702,68328.0,68327.0,0.002]
[1730604564717,0.529702,68328.0,68327.0,0.04556937]
[1730604565424,0.529702,68328.0,68327.0,0.002]
[1730604567732,0.529702,68328.0,68319.0,0.073211]
[1730604567733,0.07321,68320.0,68319.0,0.073211]
[1730604568237,0.3608,68320.0,68316.0,0.16512295]
[1730604568432,0.073213,68317.0,68316.0,0.16512295]
[1730604569733,0.073217,68314.0,68313.0,0.00219507]
[1730604571020,0.074217,68314.0,68313.0,0.01119507]
[1730604571636,0.074217,68314.0,68313.0,0.02519507]
[1730604574833,0.074217,68314.0,68313.0,0.06878937]
[1730604575025,0.074217,68314.0,68306.0,0.36168]
[1730604575026,0.513377,68314.0,68311.0,0.0435943]
[1730604575333,0.09842153,68312.0,68306.0,0.3608]
[1730604575538,0.073224,68307.0,68306.0,0.3608]
[1730604575830,0.3608,68309.0,68303.0,0.0435943]
[1730604576136,0.073227,68304.0,68303.0,0.0435943]
[1730604576333,0.3608,68309.0,68302.0,0.0435943]
[1730604576334,0.073228,68303.0,68302.0,0.0435943]
[1730604576727,0.07323,68301.0,68300.0,0.1435943]
[1730604577435,0.07323,68301.0,68300.0,0.1]
[1730604577733,0.07323,68301.0,68300.0,0.173232]
[1730604577932,0.07323,68301.0,68300.0,0.174232]
[1730604578122,0.07423,68301.0,68300.0,0.101]
[1730604579335,0.07523,68301.0,68300.0,0.11]
[1730604587846,0.07523,68301.0,68300.0,0.183232]
[1730604589045,0.17365153,68301.0,68300.0,0.11]